Workbook

Sheet Debit transactions
A1: Date | B1: Description | C1: Amount | D1: Running Bal. | E1: Who | F1: Bill to | G1: Expense Report? | H1: Invoiced? | I1: Charge Receipt
A2: 2022-01-01 | B2: Beginning balance as of 01/01/2022 | D2: 663.71 | E2: =IFERROR(INDEX(Lookup!$B$2:$C$5,MATCH(RIGHT(TRIM(Table1[[#This Row],[Description]]),4),Lookup!$B$2:$B$5,0),2),"") -> 
A3: 2022-01-03 | B3: OWL FOR THUNDERBI 01/02 PURCHASE WIESBADEN DEBIT CARD *7429 | C3: -11.38 | D3: =D2+Table1[[#This Row],[Amount]] -> 652.33 | E3: =IFERROR(INDEX(Lookup!$B$2:$C$5,MATCH(RIGHT(TRIM(Table1[[#This Row],[Description]]),4),Lookup!$B$2:$B$5,0),2),"") -> FWC
A4: 2022-01-03 | B4: Monthly Fee Business Adv Relationship | C4: -29.95 | D4: =D3+Table1[[#This Row],[Amount]] -> 622.38 | E4: =IFERROR(INDEX(Lookup!$B$2:$C$5,MATCH(RIGHT(TRIM(Table1[[#This Row],[Description]]),4),Lookup!$B$2:$B$5,0),2),"") ->  | F4: AGG
A5: 2022-01-03 | B5: INTERNATIONAL TRANSACTION FEE 01/02 OWL FOR THUNDERBI WIESBADEN DEBIT CARD *7429 | C5: -0.34 | D5: =D4+Table1[[#This Row],[Amount]] -> 622.04 | E5: =IFERROR(INDEX(Lookup!$B$2:$C$5,MATCH(RIGHT(TRIM(Table1[[#This Row],[Description]]),4),Lookup!$B$2:$B$5,0),2),"") -> FWC | I5: =TEXT(Table1[[#This Row],[Date]],"YYMMDD")&" - Intl Transaction Fee - "&LEFT(RIGHT(Table1[[#This Row],[Description]],LEN(Table1[[#This Row],[Description]])-LEN("international transaction fee xx/xx ")),SEARCH("DEBIT",RIGHT(Table1[[#This Row],[Description]],LEN(Table1[[#This Row],[Description]])-LEN("international transaction fee xx/xx xx"))))&".pdf" -> 220103 - Intl Transaction Fee - OWL FOR THUNDERBI WIESBADEN.pdf
A6: 2022-01-19 | B6: MAILCHIMP *MISC 01/18 PURCHASE MAILCHIMP.COM GA DEBIT CARD *7411 | C6: -9.49 | D6: =D5+Table1[[#This Row],[Amount]] -> 612.55 | E6: =IFERROR(INDEX(Lookup!$B$2:$C$5,MATCH(RIGHT(TRIM(Table1[[#This Row],[Description]]),4),Lookup!$B$2:$B$5,0),2),"") -> LRC | F6: AGG | G6: TRUE | I6: 220118 - AGG - Mailchimp Essentials MC14760854.pdf
A7: 2022-01-20 | B7: MailChimp 01/20 PURCHASE Atlanta GA DEBIT CARD *7411 | C7: -47.69 | D7: =D6+Table1[[#This Row],[Amount]] -> 564.86 | E7: =IFERROR(INDEX(Lookup!$B$2:$C$5,MATCH(RIGHT(TRIM(Table1[[#This Row],[Description]]),4),Lookup!$B$2:$B$5,0),2),"") -> LRC | F7: Peregrine | G7: TRUE | H7: TRUE | I7: 220120 - Peregrine - Mailchimp Essentials MC14777938.pdf
A8: 2022-01-24 | B8: PEREGRINE AVIONI DES:QUICKBOOKS ID:375020979 INDN:AVIAGLOBAL GROUP, LLC CO ID:1722616653 PPD | C8: 1500 | D8: =D7+Table1[[#This Row],[Amount]] -> 2064.86 | E8: =IFERROR(INDEX(Lookup!$B$2:$C$5,MATCH(RIGHT(TRIM(Table1[[#This Row],[Description]]),4),Lookup!$B$2:$B$5,0),2),"") -> 
A9: 2022-01-24 | B9: SOFTACULOUS 01/24 PURCHASE ABU DHABI DEBIT CARD *7429 | C9: -24 | D9: =D8+Table1[[#This Row],[Amount]] -> 2040.86 | E9: =IFERROR(INDEX(Lookup!$B$2:$C$5,MATCH(RIGHT(TRIM(Table1[[#This Row],[Description]]),4),Lookup!$B$2:$B$5,0),2),"") -> FWC | I9: 220124 - Softaculous Loginizer 783150.pdf
A10: 2022-01-24 | B10: ELEMENTOR 01/24 PURCHASE WILMINGTON DE DEBIT CARD *7429 | C10: -49 | D10: =D9+Table1[[#This Row],[Amount]] -> 1991.86 | E10: =IFERROR(INDEX(Lookup!$B$2:$C$5,MATCH(RIGHT(TRIM(Table1[[#This Row],[Description]]),4),Lookup!$B$2:$B$5,0),2),"") -> FWC | I10: 220124 - Elementor Pro.pdf
A11: 2022-01-24 | B11: INTERNATIONAL TRANSACTION FEE 01/24 SOFTACULOUS ABU DHABI DEBIT CARD *7429 | C11: -0.72 | D11: =D10+Table1[[#This Row],[Amount]] -> 1991.14 | E11: =IFERROR(INDEX(Lookup!$B$2:$C$5,MATCH(RIGHT(TRIM(Table1[[#This Row],[Description]]),4),Lookup!$B$2:$B$5,0),2),"") -> FWC | I11: =TEXT(Table1[[#This Row],[Date]],"YYMMDD")&" - Intl Transaction Fee - "&LEFT(RIGHT(Table1[[#This Row],[Description]],LEN(Table1[[#This Row],[Description]])-LEN("international transaction fee xx/xx ")),SEARCH("DEBIT",RIGHT(Table1[[#This Row],[Description]],LEN(Table1[[#This Row],[Description]])-LEN("international transaction fee xx/xx xx"))))&".pdf" -> 220124 - Intl Transaction Fee - SOFTACULOUS ABU DHABI.pdf
A12: 2022-01-25 | B12: REALLY-SIMPLE-SSL 01/24 PURCHASE GRONINGEN DEBIT CARD *7429 | C12: -23.2 | D12: =D11+Table1[[#This Row],[Amount]] -> 1967.94 | E12: =IFERROR(INDEX(Lookup!$B$2:$C$5,MATCH(RIGHT(TRIM(Table1[[#This Row],[Description]]),4),Lookup!$B$2:$B$5,0),2),"") -> FWC | I12: 220124 - Really Simple SSL 2022-1993.pdf
A13: 2022-01-25 | B13: COMPLIANZ-GDPR-PR 01/25 PURCHASE GRONINGEN DEBIT CARD *7429 | C13: -45 | D13: =D12+Table1[[#This Row],[Amount]] -> 1922.94 | E13: =IFERROR(INDEX(Lookup!$B$2:$C$5,MATCH(RIGHT(TRIM(Table1[[#This Row],[Description]]),4),Lookup!$B$2:$B$5,0),2),"") -> FWC | I13: 220125 - Complianz 2022-0745.pdf
A14: 2022-01-25 | B14: INTERNATIONAL TRANSACTION FEE 01/25 COMPLIANZ-GDPR-PR GRONINGEN DEBIT CARD *7429 | C14: -1.35 | D14: =D13+Table1[[#This Row],[Amount]] -> 1921.59 | E14: =IFERROR(INDEX(Lookup!$B$2:$C$5,MATCH(RIGHT(TRIM(Table1[[#This Row],[Description]]),4),Lookup!$B$2:$B$5,0),2),"") -> FWC | I14: =TEXT(Table1[[#This Row],[Date]],"YYMMDD")&" - Intl Transaction Fee - "&LEFT(RIGHT(Table1[[#This Row],[Description]],LEN(Table1[[#This Row],[Description]])-LEN("international transaction fee xx/xx ")),SEARCH("DEBIT",RIGHT(Table1[[#This Row],[Description]],LEN(Table1[[#This Row],[Description]])-LEN("international transaction fee xx/xx xx"))))&".pdf" -> 220125 - Intl Transaction Fee - COMPLIANZ-GDPR-PR GRONINGEN.pdf
A15: 2022-01-25 | B15: INTERNATIONAL TRANSACTION FEE 01/24 REALLY-SIMPLE-SSL GRONINGEN DEBIT CARD *7429 | C15: -0.7 | D15: =D14+Table1[[#This Row],[Amount]] -> 1920.89 | E15: =IFERROR(INDEX(Lookup!$B$2:$C$5,MATCH(RIGHT(TRIM(Table1[[#This Row],[Description]]),4),Lookup!$B$2:$B$5,0),2),"") -> FWC | I15: =TEXT(Table1[[#This Row],[Date]],"YYMMDD")&" - Intl Transaction Fee - "&LEFT(RIGHT(Table1[[#This Row],[Description]],LEN(Table1[[#This Row],[Description]])-LEN("international transaction fee xx/xx ")),SEARCH("DEBIT",RIGHT(Table1[[#This Row],[Description]],LEN(Table1[[#This Row],[Description]])-LEN("international transaction fee xx/xx xx"))))&".pdf" -> 220125 - Intl Transaction Fee - REALLY-SIMPLE-SSL GRONINGEN.pdf
A16: 2022-01-26 | B16: BLS*Single Card 01/25 PURCHASE 972547584908 DEBIT CARD *7411 | C16: -6.99 | D16: =D15+Table1[[#This Row],[Amount]] -> 1913.9 | E16: =IFERROR(INDEX(Lookup!$B$2:$C$5,MATCH(RIGHT(TRIM(Table1[[#This Row],[Description]]),4),Lookup!$B$2:$B$5,0),2),"") -> LRC | F16: AGG | G16: TRUE | I16: 220125 - Clear Coast Greetings Island 341592115.pdf
A17: 2022-01-26 | B17: INTERNATIONAL TRANSACTION FEE 01/25 BLS*Single Card 972547584908 DEBIT CARD *7411 | C17: -0.21 | D17: =D16+Table1[[#This Row],[Amount]] -> 1913.69 | E17: =IFERROR(INDEX(Lookup!$B$2:$C$5,MATCH(RIGHT(TRIM(Table1[[#This Row],[Description]]),4),Lookup!$B$2:$B$5,0),2),"") -> LRC | F17: AGG | G17: TRUE | I17: 220125 - Clear Coast Greetings Island 341592115.pdf
A18: 2022-02-01 | B18: Monthly Fee Business Adv Relationship | C18: -29.95 | D18: =D17+Table1[[#This Row],[Amount]] -> 1883.74 | E18: =IFERROR(INDEX(Lookup!$B$2:$C$5,MATCH(RIGHT(TRIM(Table1[[#This Row],[Description]]),4),Lookup!$B$2:$B$5,0),2),"") ->  | F18: AGG
A19: 2022-02-07 | B19: INMOTIONHOSTING.C 02/06 PURCHASE 888-3214678 CA DEBIT CARD *7429 | C19: -37.18 | D19: =D18+Table1[[#This Row],[Amount]] -> 1846.56 | E19: =IFERROR(INDEX(Lookup!$B$2:$C$5,MATCH(RIGHT(TRIM(Table1[[#This Row],[Description]]),4),Lookup!$B$2:$B$5,0),2),"") -> FWC
A20: 2022-02-14 | B20: JET NET 02/10 PURCHASE 315-797-4420 NY DEBIT CARD *7411 | C20: -850 | D20: =D19+Table1[[#This Row],[Amount]] -> 996.56 | E20: =IFERROR(INDEX(Lookup!$B$2:$C$5,MATCH(RIGHT(TRIM(Table1[[#This Row],[Description]]),4),Lookup!$B$2:$B$5,0),2),"") -> LRC | F20: Peregrine | G20: TRUE | H20: TRUE | I20: Executed Custom Special Report Project Agreement AviaGlobal Group LLC[84].pdf
A21: 2022-02-18 | B21: PEREGRINE AVIONI DES:QUICKBOOKS ID:375020979 INDN:AVIAGLOBAL GROUP, LLC CO ID:1722616653 PPD | C21: 1500 | D21: =D20+Table1[[#This Row],[Amount]] -> 2496.56 | E21: =IFERROR(INDEX(Lookup!$B$2:$C$5,MATCH(RIGHT(TRIM(Table1[[#This Row],[Description]]),4),Lookup!$B$2:$B$5,0),2),"") -> 
A22: 2022-02-22 | B22: MailChimp 02/20 PURCHASE Atlanta GA DEBIT CARD *7411 | C22: -59 | D22: =D21+Table1[[#This Row],[Amount]] -> 2437.56 | E22: =IFERROR(INDEX(Lookup!$B$2:$C$5,MATCH(RIGHT(TRIM(Table1[[#This Row],[Description]]),4),Lookup!$B$2:$B$5,0),2),"") -> LRC | F22: Peregrine | G22: TRUE | H22: TRUE | I22: 220220 - Peregrine - Mailchimp Essentials MC15026518.pdf
A23: 2022-02-22 | B23: MAILCHIMP *MISC 02/18 PURCHASE MAILCHIMP.COM GA DEBIT CARD *7411 | C23: -11.62 | D23: =D22+Table1[[#This Row],[Amount]] -> 2425.94 | E23: =IFERROR(INDEX(Lookup!$B$2:$C$5,MATCH(RIGHT(TRIM(Table1[[#This Row],[Description]]),4),Lookup!$B$2:$B$5,0),2),"") -> LRC | F23: AGG | G23: TRUE | I23: 220218 - AGG - Mailchimp Essentials MC15010226.pdf
A24: 2022-03-01 | B24: Monthly Fee Business Adv Relationship | C24: -29.95 | D24: =D23+Table1[[#This Row],[Amount]] -> 2395.99 | E24: =IFERROR(INDEX(Lookup!$B$2:$C$5,MATCH(RIGHT(TRIM(Table1[[#This Row],[Description]]),4),Lookup!$B$2:$B$5,0),2),"") ->  | F24: AGG
A25: 2022-03-15 | B25: Amazon.com*1N91P5 03/14 PURCHASE Amzn.com/bill WA DEBIT CARD *7411 | C25: -66.66 | D25: =D24+Table1[[#This Row],[Amount]] -> 2329.33 | E25: =IFERROR(INDEX(Lookup!$B$2:$C$5,MATCH(RIGHT(TRIM(Table1[[#This Row],[Description]]),4),Lookup!$B$2:$B$5,0),2),"") -> LRC | F25: Peregrine | G25: TRUE | H25: TRUE | I25: Amazon.com - Order 111-7793024-7025007.pdf
A26: 2022-03-15 | B26: STAMPS.COM 03/14 PURCHASE 855-608-2677 CA DEBIT CARD *7411 | C26: -30.12 | D26: =D25+Table1[[#This Row],[Amount]] -> 2299.21 | E26: =IFERROR(INDEX(Lookup!$B$2:$C$5,MATCH(RIGHT(TRIM(Table1[[#This Row],[Description]]),4),Lookup!$B$2:$B$5,0),2),"") -> LRC | F26: Peregrine | G26: TRUE | H26: TRUE | I26: Stamps dot com st2385760.pdf
A27: 2022-03-15 | B27: STAMPS.COM 03/14 PURCHASE 855-608-2677 CA DEBIT CARD *7411 | C27: -19.19 | D27: =D26+Table1[[#This Row],[Amount]] -> 2280.02 | E27: =IFERROR(INDEX(Lookup!$B$2:$C$5,MATCH(RIGHT(TRIM(Table1[[#This Row],[Description]]),4),Lookup!$B$2:$B$5,0),2),"") -> LRC | F27: AGG | G27: TRUE | I27: Stamps dot com st2385037.pdf
A28: 2022-03-15 | B28: TRANSFER AVIAGLOBAL GROUP, LL:ADS-B Global LLC Confirmation# 1737069000 | C28: -74.1 | D28: =D27+Table1[[#This Row],[Amount]] -> 2205.92 | E28: =IFERROR(INDEX(Lookup!$B$2:$C$5,MATCH(RIGHT(TRIM(Table1[[#This Row],[Description]]),4),Lookup!$B$2:$B$5,0),2),"") -> 
A29: 2022-03-16 | B29: MONSTERINSIGHTS W 03/16 PURCHASE PALM BEACH GA FL DEBIT CARD *7429 | C29: -199 | D29: =D28+Table1[[#This Row],[Amount]] -> 2006.92 | E29: =IFERROR(INDEX(Lookup!$B$2:$C$5,MATCH(RIGHT(TRIM(Table1[[#This Row],[Description]]),4),Lookup!$B$2:$B$5,0),2),"") -> FWC | I29: 220316 - Monsterinsights Plus.pdf
A30: 2022-03-16 | B30: SEMPER PLUGINS AI 03/16 PURCHASE PALM BEACH GA FL DEBIT CARD *7429 | C30: -99 | D30: =D29+Table1[[#This Row],[Amount]] -> 1907.92 | E30: =IFERROR(INDEX(Lookup!$B$2:$C$5,MATCH(RIGHT(TRIM(Table1[[#This Row],[Description]]),4),Lookup!$B$2:$B$5,0),2),"") -> FWC
A31: 2022-03-16 | B31: External transfer fee - 3 Day - 03/15/2022 Confirmation: 379444042 | C31: -1 | D31: =D30+Table1[[#This Row],[Amount]] -> 1906.92 | E31: =IFERROR(INDEX(Lookup!$B$2:$C$5,MATCH(RIGHT(TRIM(Table1[[#This Row],[Description]]),4),Lookup!$B$2:$B$5,0),2),"") -> 
A32: 2022-03-17 | B32: PEREGRINE AVIONI DES:QUICKBOOKS ID:375020979 INDN:AVIAGLOBAL GROUP, LLC CO ID:1722616653 PPD | C32: 3850 | D32: =D31+Table1[[#This Row],[Amount]] -> 5756.92 | E32: =IFERROR(INDEX(Lookup!$B$2:$C$5,MATCH(RIGHT(TRIM(Table1[[#This Row],[Description]]),4),Lookup!$B$2:$B$5,0),2),"") -> 
A33: 2022-03-18 | B33: USPS STAMPS ENDIC 03/17 PURCHASE 888-434-0055 DC DEBIT CARD *7411 | C33: -100 | D33: =D32+Table1[[#This Row],[Amount]] -> 5656.92 | E33: =IFERROR(INDEX(Lookup!$B$2:$C$5,MATCH(RIGHT(TRIM(Table1[[#This Row],[Description]]),4),Lookup!$B$2:$B$5,0),2),"") -> LRC | F33: Peregrine | G33: TRUE | H33: TRUE | I33: Stamps dot com Postage orders.pdf
A34: 2022-03-18 | B34: USPS STAMPS ENDIC 03/17 PURCHASE 888-434-0055 DC DEBIT CARD *7411 | C34: -50 | D34: =D33+Table1[[#This Row],[Amount]] -> 5606.92 | E34: =IFERROR(INDEX(Lookup!$B$2:$C$5,MATCH(RIGHT(TRIM(Table1[[#This Row],[Description]]),4),Lookup!$B$2:$B$5,0),2),"") -> LRC | F34: Peregrine | G34: TRUE | H34: TRUE | I34: Stamps dot com Postage orders.pdf
A35: 2022-03-18 | B35: AMZN Mktp US*1N5B 03/17 PURCHASE Amzn.com/bill WA DEBIT CARD *7411 | C35: -29.63 | D35: =D34+Table1[[#This Row],[Amount]] -> 5577.29 | E35: =IFERROR(INDEX(Lookup!$B$2:$C$5,MATCH(RIGHT(TRIM(Table1[[#This Row],[Description]]),4),Lookup!$B$2:$B$5,0),2),"") -> LRC | F35: Peregrine | G35: TRUE | H35: TRUE | I35: Amazon.com - Order 114-5434031-3824202.pdf
A36: 2022-03-21 | B36: MailChimp 03/20 PURCHASE Atlanta GA DEBIT CARD *7411 | C36: -59 | D36: =D35+Table1[[#This Row],[Amount]] -> 5518.29 | E36: =IFERROR(INDEX(Lookup!$B$2:$C$5,MATCH(RIGHT(TRIM(Table1[[#This Row],[Description]]),4),Lookup!$B$2:$B$5,0),2),"") -> LRC | F36: Peregrine | G36: TRUE | H36: TRUE | I36: 220320 - Peregrine - Mailchimp Essentials MC15268026.pdf
A37: 2022-03-21 | B37: MAILCHIMP *MISC 03/18 PURCHASE MAILCHIMP.COM GA DEBIT CARD *7411 | C37: -11.62 | D37: =D36+Table1[[#This Row],[Amount]] -> 5506.67 | E37: =IFERROR(INDEX(Lookup!$B$2:$C$5,MATCH(RIGHT(TRIM(Table1[[#This Row],[Description]]),4),Lookup!$B$2:$B$5,0),2),"") -> LRC | F37: AGG | G37: TRUE | I37: 220318 - AGG - Mailchimp Essentials MC15252178.pdf
A38: 2022-03-23 | B38: TRANSFER AVIAGLOBAL GROUP, LL:ADS-B Global LLC Confirmation# 0107351744 | C38: -96.55 | D38: =D37+Table1[[#This Row],[Amount]] -> 5410.12 | E38: =IFERROR(INDEX(Lookup!$B$2:$C$5,MATCH(RIGHT(TRIM(Table1[[#This Row],[Description]]),4),Lookup!$B$2:$B$5,0),2),"") -> 
A39: 2022-03-24 | B39: USPS STAMPS ENDIC 03/23 PURCHASE 888-434-0055 DC DEBIT CARD *7411 | C39: -25 | D39: =D38+Table1[[#This Row],[Amount]] -> 5385.12 | E39: =IFERROR(INDEX(Lookup!$B$2:$C$5,MATCH(RIGHT(TRIM(Table1[[#This Row],[Description]]),4),Lookup!$B$2:$B$5,0),2),"") -> LRC | F39: Peregrine | G39: TRUE | H39: TRUE | I39: Stamps dot com Postage orders.pdf
A40: 2022-03-24 | B40: External transfer fee - 3 Day - 03/23/2022 Confirmation: 380466874 | C40: -1 | D40: =D39+Table1[[#This Row],[Amount]] -> 5384.12 | E40: =IFERROR(INDEX(Lookup!$B$2:$C$5,MATCH(RIGHT(TRIM(Table1[[#This Row],[Description]]),4),Lookup!$B$2:$B$5,0),2),"") -> 
A41: 2022-03-29 | B41: MICHAEL L STUCK C 03/28 PURCHASE SCOTTSDALE AZ DEBIT CARD *0975 | C41: -575 | D41: =D40+Table1[[#This Row],[Amount]] -> 4809.12 | E41: =IFERROR(INDEX(Lookup!$B$2:$C$5,MATCH(RIGHT(TRIM(Table1[[#This Row],[Description]]),4),Lookup!$B$2:$B$5,0),2),"") -> HEA
A42: 2022-03-31 | B42: NATIONAL BUS AVIA 03/31 PURCHASE WASHINGTON DC DEBIT CARD *7411 | C42: -750 | D42: =D41+Table1[[#This Row],[Amount]] -> 4059.12 | E42: =IFERROR(INDEX(Lookup!$B$2:$C$5,MATCH(RIGHT(TRIM(Table1[[#This Row],[Description]]),4),Lookup!$B$2:$B$5,0),2),"") -> LRC | F42: AGG | G42: TRUE | I42: 220331 - NBAA Dues 000419790.pdf
A43: 2022-04-01 | B43: Monthly Fee Business Adv Relationship | C43: -29.95 | D43: =D42+Table1[[#This Row],[Amount]] -> 4029.17 | E43: =IFERROR(INDEX(Lookup!$B$2:$C$5,MATCH(RIGHT(TRIM(Table1[[#This Row],[Description]]),4),Lookup!$B$2:$B$5,0),2),"") ->  | F43: AGG
A44: 2022-04-08 | B44: EVERMAP COMPANY L 04/05 PURCHASE CORVALLIS OR DEBIT CARD *0975 | C44: -149 | D44: =D43+Table1[[#This Row],[Amount]] -> 3880.17 | E44: =IFERROR(INDEX(Lookup!$B$2:$C$5,MATCH(RIGHT(TRIM(Table1[[#This Row],[Description]]),4),Lookup!$B$2:$B$5,0),2),"") -> HEA
A45: 2022-04-13 | B45: EVERMAP COMPANY L 04/05 PURCHASE CORVALLIS OR DEBIT CARD *7411 | C45: -149 | D45: =D44+Table1[[#This Row],[Amount]] -> 3731.17 | E45: =IFERROR(INDEX(Lookup!$B$2:$C$5,MATCH(RIGHT(TRIM(Table1[[#This Row],[Description]]),4),Lookup!$B$2:$B$5,0),2),"") -> LRC | F45: AGG | G45: TRUE | I45: 220405 - Evermap PDF Tool W-48699.pdf
A46: 2022-04-14 | B46: STAMPS.COM 04/14 PURCHASE 855-608-2677 CA DEBIT CARD *7411 | C46: -17.99 | D46: =D45+Table1[[#This Row],[Amount]] -> 3713.18 | E46: =IFERROR(INDEX(Lookup!$B$2:$C$5,MATCH(RIGHT(TRIM(Table1[[#This Row],[Description]]),4),Lookup!$B$2:$B$5,0),2),"") -> LRC | F46: AGG | G46: TRUE | I46: 220416 - Stamps dot com.pdf
A47: 2022-04-19 | B47: MAILCHIMP *MISC 04/18 PURCHASE MAILCHIMP.COM GA DEBIT CARD *7411 | C47: -11.62 | D47: =D46+Table1[[#This Row],[Amount]] -> 3701.56 | E47: =IFERROR(INDEX(Lookup!$B$2:$C$5,MATCH(RIGHT(TRIM(Table1[[#This Row],[Description]]),4),Lookup!$B$2:$B$5,0),2),"") -> LRC | F47: AGG | G47: TRUE | I47: 220418 - AGG - Mailchimp Essentials MC15490450.pdf
A48: 2022-04-20 | B48: PEREGRINE AVIONI DES:QUICKBOOKS ID:375020979 INDN:AVIAGLOBAL GROUP, LLC CO ID:1722616653 PPD | C48: 3557.1 | D48: =D47+Table1[[#This Row],[Amount]] -> 7258.66 | E48: =IFERROR(INDEX(Lookup!$B$2:$C$5,MATCH(RIGHT(TRIM(Table1[[#This Row],[Description]]),4),Lookup!$B$2:$B$5,0),2),"") -> 
A49: 2022-04-20 | B49: MailChimp 04/20 PURCHASE Atlanta GA DEBIT CARD *7411 | C49: -59 | D49: =D48+Table1[[#This Row],[Amount]] -> 7199.66 | E49: =IFERROR(INDEX(Lookup!$B$2:$C$5,MATCH(RIGHT(TRIM(Table1[[#This Row],[Description]]),4),Lookup!$B$2:$B$5,0),2),"") -> LRC | F49: Peregrine | G49: TRUE | I49: 220420 - Peregrine - Mailchimp Essentials MC15506606.pdf
A50: 2022-04-22 | B50: TRANSFER AVIAGLOBAL GROUP, LL:ADS-B Global LLC Confirmation# 1763915441 | C50: -2000 | D50: =D49+Table1[[#This Row],[Amount]] -> 5199.66 | E50: =IFERROR(INDEX(Lookup!$B$2:$C$5,MATCH(RIGHT(TRIM(Table1[[#This Row],[Description]]),4),Lookup!$B$2:$B$5,0),2),"") -> 
A51: 2022-04-22 | B51: TRANSFER AVIAGLOBAL GROUP, LL:Forrest Colliver Confirmation# 0663925416 | C51: -2000 | D51: =D50+Table1[[#This Row],[Amount]] -> 3199.66 | E51: =IFERROR(INDEX(Lookup!$B$2:$C$5,MATCH(RIGHT(TRIM(Table1[[#This Row],[Description]]),4),Lookup!$B$2:$B$5,0),2),"") -> 
A52: 2022-04-22 | B52: Online Banking Transfer Conf# iuvu5ty24; AERO BUSINESS DEVELOPEMENT LLC | C52: -2000 | D52: =D51+Table1[[#This Row],[Amount]] -> 1199.66 | E52: =IFERROR(INDEX(Lookup!$B$2:$C$5,MATCH(RIGHT(TRIM(Table1[[#This Row],[Description]]),4),Lookup!$B$2:$B$5,0),2),"") -> 
A53: 2022-04-25 | B53: External transfer fee - 3 Day - 04/22/2022 Confirmation: 384618918 | C53: -1 | D53: =D52+Table1[[#This Row],[Amount]] -> 1198.66 | E53: =IFERROR(INDEX(Lookup!$B$2:$C$5,MATCH(RIGHT(TRIM(Table1[[#This Row],[Description]]),4),Lookup!$B$2:$B$5,0),2),"") -> 
A54: 2022-04-25 | B54: External transfer fee - 3 Day - 04/22/2022 Confirmation: 384619226 | C54: -1 | D54: =D53+Table1[[#This Row],[Amount]] -> 1197.66 | E54: =IFERROR(INDEX(Lookup!$B$2:$C$5,MATCH(RIGHT(TRIM(Table1[[#This Row],[Description]]),4),Lookup!$B$2:$B$5,0),2),"") -> 
A55: 2022-05-02 | B55: Monthly Fee Business Adv Relationship | C55: -29.95 | D55: =D54+Table1[[#This Row],[Amount]] -> 1167.71 | E55: =IFERROR(INDEX(Lookup!$B$2:$C$5,MATCH(RIGHT(TRIM(Table1[[#This Row],[Description]]),4),Lookup!$B$2:$B$5,0),2),"") ->  | F55: AGG
A56: 2022-05-16 | B56: STAMPS.COM 05/14 PURCHASE 855-608-2677 CA DEBIT CARD *7411 | C56: -17.99 | D56: =D55+Table1[[#This Row],[Amount]] -> 1149.72 | E56: =IFERROR(INDEX(Lookup!$B$2:$C$5,MATCH(RIGHT(TRIM(Table1[[#This Row],[Description]]),4),Lookup!$B$2:$B$5,0),2),"") -> LRC | F56: AGG | G56: TRUE | I56: 220516 - Stamps dot com.pdf
A57: 2022-05-19 | B57: MAILCHIMP *MISC 05/18 PURCHASE MAILCHIMP.COM GA DEBIT CARD *7411 | C57: -11.62 | D57: =D56+Table1[[#This Row],[Amount]] -> 1138.1 | E57: =IFERROR(INDEX(Lookup!$B$2:$C$5,MATCH(RIGHT(TRIM(Table1[[#This Row],[Description]]),4),Lookup!$B$2:$B$5,0),2),"") -> LRC | F57: AGG | G57: TRUE | I57: 220518 - AGG - Mailchimp Essentials MC15724938.pdf
A58: 2022-05-20 | B58: MailChimp 05/20 PURCHASE Atlanta GA DEBIT CARD *7411 | C58: -59 | D58: =D57+Table1[[#This Row],[Amount]] -> 1079.1 | E58: =IFERROR(INDEX(Lookup!$B$2:$C$5,MATCH(RIGHT(TRIM(Table1[[#This Row],[Description]]),4),Lookup!$B$2:$B$5,0),2),"") -> LRC | F58: Peregrine | G58: TRUE | I58: 220520 - Peregrine - Mailchimp Essentials MC15741014.pdf
A59: 2022-06-01 | B59: Monthly Fee Business Adv Relationship | C59: -29.95 | D59: =D58+Table1[[#This Row],[Amount]] -> 1049.15 | E59: =IFERROR(INDEX(Lookup!$B$2:$C$5,MATCH(RIGHT(TRIM(Table1[[#This Row],[Description]]),4),Lookup!$B$2:$B$5,0),2),"") ->  | F59: AGG
A60: 2022-06-06 | B60: DMARCIAN* DMARCIA 06/04 PURCHASE BREVARD NC DEBIT CARD *7429 | C60: -239.88 | D60: =D59+Table1[[#This Row],[Amount]] -> 809.27 | E60: =IFERROR(INDEX(Lookup!$B$2:$C$5,MATCH(RIGHT(TRIM(Table1[[#This Row],[Description]]),4),Lookup!$B$2:$B$5,0),2),"") -> FWC | I60: 220604 - Demarcian 50733.pdf
A61: 2022-06-08 | B61: DREAMSTIME.COM 06/07 PURCHASE BRENTWOOD TN DEBIT CARD *7411 | C61: -16.99 | D61: =D60+Table1[[#This Row],[Amount]] -> 792.28 | E61: =IFERROR(INDEX(Lookup!$B$2:$C$5,MATCH(RIGHT(TRIM(Table1[[#This Row],[Description]]),4),Lookup!$B$2:$B$5,0),2),"") -> LRC | F61: Peregrine | G61: TRUE | I61: 220607 - Dreamtime LLC 23829472.pdf
A62: 2022-06-08 | B62: DREAMSTIME.COM 06/07 PURCHASE BRENTWOOD TN DEBIT CARD *7411 | C62: -1 | D62: =D61+Table1[[#This Row],[Amount]] -> 791.28 | E62: =IFERROR(INDEX(Lookup!$B$2:$C$5,MATCH(RIGHT(TRIM(Table1[[#This Row],[Description]]),4),Lookup!$B$2:$B$5,0),2),"") -> LRC | F62: Peregrine | G62: TRUE | I62: 220607 - Dreamtime LLC 23829472.pdf
A63: 2022-06-14 | B63: STAMPS.COM 06/14 PURCHASE 855-608-2677 CA DEBIT CARD *7411 | C63: -17.99 | D63: =D62+Table1[[#This Row],[Amount]] -> 773.29 | E63: =IFERROR(INDEX(Lookup!$B$2:$C$5,MATCH(RIGHT(TRIM(Table1[[#This Row],[Description]]),4),Lookup!$B$2:$B$5,0),2),"") -> LRC | F63: AGG | G63: TRUE | I63: 220616 - Stamps dot com.pdf
A64: 2022-06-21 | B64: MailChimp 06/20 PURCHASE Atlanta GA DEBIT CARD *7411 | C64: -59 | D64: =D63+Table1[[#This Row],[Amount]] -> 714.29 | E64: =IFERROR(INDEX(Lookup!$B$2:$C$5,MATCH(RIGHT(TRIM(Table1[[#This Row],[Description]]),4),Lookup!$B$2:$B$5,0),2),"") -> LRC | F64: Peregrine | G64: TRUE | I64: 220620 - Peregrine - Mailchimp Essentials MC15971334.pdf
A65: 2022-06-21 | B65: MAILCHIMP *MISC 06/18 PURCHASE MAILCHIMP.COM GA DEBIT CARD *7411 | C65: -11.62 | D65: =D64+Table1[[#This Row],[Amount]] -> 702.67 | E65: =IFERROR(INDEX(Lookup!$B$2:$C$5,MATCH(RIGHT(TRIM(Table1[[#This Row],[Description]]),4),Lookup!$B$2:$B$5,0),2),"") -> LRC | F65: AGG | G65: TRUE | I65: 220618 - AGG - Mailchimp Essentials MC15956138.pdf
A66: 2022-06-21 | B66: ELEMENTOR 06/20 PURCHASE WILMINGTON DE DEBIT CARD *7429 | C66: -49 | D66: =D65+Table1[[#This Row],[Amount]] -> 653.67 | E66: =IFERROR(INDEX(Lookup!$B$2:$C$5,MATCH(RIGHT(TRIM(Table1[[#This Row],[Description]]),4),Lookup!$B$2:$B$5,0),2),"") -> FWC
A67: 2022-06-21 | B67: REALLY-SIMPLE-SSL 06/20 PURCHASE GRONINGEN DEBIT CARD *7429 | C67: -23.2 | D67: =D66+Table1[[#This Row],[Amount]] -> 630.47 | E67: =IFERROR(INDEX(Lookup!$B$2:$C$5,MATCH(RIGHT(TRIM(Table1[[#This Row],[Description]]),4),Lookup!$B$2:$B$5,0),2),"") -> FWC
A68: 2022-06-21 | B68: COMPLIANZ-GDPR-PR 06/20 PURCHASE GRONINGEN DEBIT CARD *7429 | C68: -45 | D68: =D67+Table1[[#This Row],[Amount]] -> 585.47 | E68: =IFERROR(INDEX(Lookup!$B$2:$C$5,MATCH(RIGHT(TRIM(Table1[[#This Row],[Description]]),4),Lookup!$B$2:$B$5,0),2),"") -> FWC
A69: 2022-06-21 | B69: INTERNATIONAL TRANSACTION FEE 06/20 COMPLIANZ-GDPR-PR GRONINGEN DEBIT CARD *7429 | C69: -1.35 | D69: =D68+Table1[[#This Row],[Amount]] -> 584.12 | E69: =IFERROR(INDEX(Lookup!$B$2:$C$5,MATCH(RIGHT(TRIM(Table1[[#This Row],[Description]]),4),Lookup!$B$2:$B$5,0),2),"") -> FWC | I69: =TEXT(Table1[[#This Row],[Date]],"YYMMDD")&" - Intl Transaction Fee - "&LEFT(RIGHT(Table1[[#This Row],[Description]],LEN(Table1[[#This Row],[Description]])-LEN("international transaction fee xx/xx ")),SEARCH("DEBIT",RIGHT(Table1[[#This Row],[Description]],LEN(Table1[[#This Row],[Description]])-LEN("international transaction fee xx/xx xx"))))&".pdf" -> 220621 - Intl Transaction Fee - COMPLIANZ-GDPR-PR GRONINGEN.pdf
A70: 2022-06-21 | B70: INTERNATIONAL TRANSACTION FEE 06/20 REALLY-SIMPLE-SSL GRONINGEN DEBIT CARD *7429 | C70: -0.7 | D70: =D69+Table1[[#This Row],[Amount]] -> 583.42 | E70: =IFERROR(INDEX(Lookup!$B$2:$C$5,MATCH(RIGHT(TRIM(Table1[[#This Row],[Description]]),4),Lookup!$B$2:$B$5,0),2),"") -> FWC | I70: =TEXT(Table1[[#This Row],[Date]],"YYMMDD")&" - Intl Transaction Fee - "&LEFT(RIGHT(Table1[[#This Row],[Description]],LEN(Table1[[#This Row],[Description]])-LEN("international transaction fee xx/xx ")),SEARCH("DEBIT",RIGHT(Table1[[#This Row],[Description]],LEN(Table1[[#This Row],[Description]])-LEN("international transaction fee xx/xx xx"))))&".pdf" -> 220621 - Intl Transaction Fee - REALLY-SIMPLE-SSL GRONINGEN.pdf
A71: 2022-07-01 | B71: Monthly Fee Business Adv Relationship | C71: -29.95 | D71: =D70+Table1[[#This Row],[Amount]] -> 553.47 | E71: =IFERROR(INDEX(Lookup!$B$2:$C$5,MATCH(RIGHT(TRIM(Table1[[#This Row],[Description]]),4),Lookup!$B$2:$B$5,0),2),"") -> 
A72: 2022-07-08 | B72: PEREGRINE AVIONI DES:QUICKBOOKS ID:375020979 INDN:AVIAGLOBAL GROUP, LLC CO ID:1722616653 PPD | C72: 3000 | D72: =D71+Table1[[#This Row],[Amount]] -> 3553.47 | E72: =IFERROR(INDEX(Lookup!$B$2:$C$5,MATCH(RIGHT(TRIM(Table1[[#This Row],[Description]]),4),Lookup!$B$2:$B$5,0),2),"") -> 
A73: 2022-07-14 | B73: STAMPS.COM 07/14 PURCHASE 855-608-2677 CA DEBIT CARD *7411 | C73: -17.99 | D73: =D72+Table1[[#This Row],[Amount]] -> 3535.48 | E73: =IFERROR(INDEX(Lookup!$B$2:$C$5,MATCH(RIGHT(TRIM(Table1[[#This Row],[Description]]),4),Lookup!$B$2:$B$5,0),2),"") -> LRC | F73: AGG | I73: 220714 - Stamps dot com.pdf
A74: 2022-07-19 | B74: MAILCHIMP *MISC 07/18 PURCHASE MAILCHIMP.COM GA DEBIT CARD *7411 | C74: -11.62 | D74: =D73+Table1[[#This Row],[Amount]] -> 3523.86 | E74: =IFERROR(INDEX(Lookup!$B$2:$C$5,MATCH(RIGHT(TRIM(Table1[[#This Row],[Description]]),4),Lookup!$B$2:$B$5,0),2),"") -> LRC | F74: AGG | I74: 220718 - AGG - Mailchimp Essential MC16182470.pdf
A75: 2022-07-20 | B75: MailChimp 07/20 PURCHASE Atlanta GA DEBIT CARD *7411 | C75: -59 | D75: =D74+Table1[[#This Row],[Amount]] -> 3464.86 | E75: =IFERROR(INDEX(Lookup!$B$2:$C$5,MATCH(RIGHT(TRIM(Table1[[#This Row],[Description]]),4),Lookup!$B$2:$B$5,0),2),"") -> LRC | F75: Peregrine
A76: 2022-08-01 | B76: SAE INTERNATIONAL 07/30 PURCHASE 7247764841 PA DEBIT CARD *7411 | C76: -120 | D76: =D75+Table1[[#This Row],[Amount]] -> 3344.86 | E76: =IFERROR(INDEX(Lookup!$B$2:$C$5,MATCH(RIGHT(TRIM(Table1[[#This Row],[Description]]),4),Lookup!$B$2:$B$5,0),2),"") -> LRC | F76: AGG
A77: 2022-08-01 | B77: Monthly Fee Business Adv Relationship | C77: -29.95 | D77: =D76+Table1[[#This Row],[Amount]] -> 3314.91 | E77: =IFERROR(INDEX(Lookup!$B$2:$C$5,MATCH(RIGHT(TRIM(Table1[[#This Row],[Description]]),4),Lookup!$B$2:$B$5,0),2),"") ->  | F77: AGG
A78: 2022-08-08 | B78: PEREGRINE AVIONI DES:QUICKBOOKS ID:375020979 INDN:AVIAGLOBAL GROUP, LLC CO ID:1722616653 PPD | C78: 3000 | D78: =D77+Table1[[#This Row],[Amount]] -> 6314.91 | E78: =IFERROR(INDEX(Lookup!$B$2:$C$5,MATCH(RIGHT(TRIM(Table1[[#This Row],[Description]]),4),Lookup!$B$2:$B$5,0),2),"") -> 
A79: 2022-08-15 | B79: STAMPS.COM 08/14 PURCHASE 855-608-2677 CA DEBIT CARD *7411 | C79: -17.99 | D79: =D78+Table1[[#This Row],[Amount]] -> 6296.92 | E79: =IFERROR(INDEX(Lookup!$B$2:$C$5,MATCH(RIGHT(TRIM(Table1[[#This Row],[Description]]),4),Lookup!$B$2:$B$5,0),2),"") -> LRC | F79: AGG
A80: 2022-08-19 | B80: MAILCHIMP *MISC 08/18 PURCHASE MAILCHIMP.COM GA DEBIT CARD *7411 | C80: -11.62 | D80: =D79+Table1[[#This Row],[Amount]] -> 6285.3 | E80: =IFERROR(INDEX(Lookup!$B$2:$C$5,MATCH(RIGHT(TRIM(Table1[[#This Row],[Description]]),4),Lookup!$B$2:$B$5,0),2),"") -> LRC | F80: AGG
A81: 2022-08-22 | B81: MailChimp 08/20 PURCHASE Atlanta GA DEBIT CARD *7411 | C81: -59 | D81: =D80+Table1[[#This Row],[Amount]] -> 6226.3 | E81: =IFERROR(INDEX(Lookup!$B$2:$C$5,MATCH(RIGHT(TRIM(Table1[[#This Row],[Description]]),4),Lookup!$B$2:$B$5,0),2),"") -> LRC | F81: Peregrine

Sheet Lookup
B2: Debit card | C2: Who
B3: 0975 | C3: HEA
B4: 7411 | C4: LRC
B5: 7429 | C5: FWC

Sheet Sheet3
A1: 15‐Mar‐22 AGG MasterCard G150 campaign Stamps.com Mailing material 30.12$ US 1.00 30.12$ | J1: 30.12
A2: 15‐Mar‐22 AGG MasterCard G150 campaign Amazon Brochure stock, envelopes 66.66$ US 1.00 66.66$ | J2: 66.66
A3: 17‐Mar‐22 ADS‐B Global G150 campaign ADS‐B Glbl Brochure printing two‐sided color laser 180 US 0.50 90.00$
A4: 18‐Mar‐22 AGG MasterCard G150 campaign Stamps.com USPS STAMPS 50.00$ US 1.00 50.00$ | J4: 50
A5: 18‐Mar‐22 AGG MasterCard G150 campaign Stamps.com USPS STAMPS 100.00$ US 1.00 100.00$ | J5: 100
A6: 18‐Mar‐22 AGG MasterCard G150 campaign Amazon Brochure stock 29.63$ US 1.00 29.63$ | J6: 29.63
A7: 20‐Mar‐22 AGG MasterCard Dues/Subscriptions Mailchimp Mailchimp Essentials 59.00$ US 1.00 59.00$ | J7: 59
A8: 23‐Mar‐22 AGG MasterCard G150 campaign Stamps.com USPS STAMPS 25.00$ US 1.00 25.00 | J8: 25

Sheet Sheet2
A1: Column1 | B1: Column2 | C1: Column3 | D1: Column4 | E1: Column5 | F1: Column6 | G1: Column7 | H1: Column8
A2: 11.62 | H2: - AGG - Mailchimp Essentials
A4: MC15956138 | F4: =F8&$H$2&TRIM(A4)&".pdf" -> 220618 - AGG - Mailchimp Essentials MC15956138.pdf
A6: Essentials plan (500 contacts)
A8: Sat, Jun 18, 2022 3:18 am | E8: =DATEVALUE(MID(A8,6,12)) -> 2022-06-18 | F8: =TEXT(E8,"YYMMDD") -> 220618
A10: 11.62
A12: MC15724938 | F12: =F16&$H$2&TRIM(A12)&".pdf" -> 220518 - AGG - Mailchimp Essentials MC15724938.pdf
A14: Essentials plan (500 contacts)
A16: Wed, May 18, 2022 3:35 am | E16: =DATEVALUE(MID(A16,6,12)) -> 2022-05-18 | F16: =TEXT(E16,"YYMMDD") -> 220518
A18: 11.62
A20: MC15490450 | F20: =F24&$H$2&TRIM(A20)&".pdf" -> 220418 - AGG - Mailchimp Essentials MC15490450.pdf
A22: Essentials plan (500 contacts)
A24: Mon, Apr 18, 2022 3:35 am | E24: =DATEVALUE(MID(A24,6,12)) -> 2022-04-18 | F24: =TEXT(E24,"YYMMDD") -> 220418
A26: 11.62
A28: MC15252178 | F28: =F32&$H$2&TRIM(A28)&".pdf" -> 220318 - AGG - Mailchimp Essentials MC15252178.pdf
A30: Essentials plan (500 contacts)
A32: Fri, Mar 18, 2022 3:34 am | E32: =DATEVALUE(MID(A32,6,12)) -> 2022-03-18 | F32: =TEXT(E32,"YYMMDD") -> 220318
A34: 11.62
A36: MC15010226 | F36: =F40&$H$2&TRIM(A36)&".pdf" -> 220218 - AGG - Mailchimp Essentials MC15010226.pdf
A38: Essentials plan (500 contacts)
A40: Fri, Feb 18, 2022 2:35 am | E40: =DATEVALUE(MID(A40,6,12)) -> 2022-02-18 | F40: =TEXT(E40,"YYMMDD") -> 220218
A42: 9.49
A44: MC14760854
A46: Essentials plan (500 contacts)
A48: Tue, Jan 18, 2022 3:11 am

Sheet Sheet1
A1: W:\$ AviaGlobalGroup\AGG Finance\AGG Credit Card Receipts\*AGG*
I2: =IFERROR(INDEX(ListOfFiles,ROW()-2),"") -> 
I3: =IFERROR(INDEX(ListOfFiles,ROW()-2),"") -> 
A4: =IFERROR(INDEX(FileNameList,ROW()-2),"") ->  | I4: =IFERROR(INDEX(ListOfFiles,ROW()-2),"") -> 
I5: =IFERROR(INDEX(ListOfFiles,ROW()-2),"") -> 
I6: =IFERROR(INDEX(ListOfFiles,ROW()-2),"") -> 
I7: =IFERROR(INDEX(ListOfFiles,ROW()-2),"") -> 
I8: =IFERROR(INDEX(ListOfFiles,ROW()-2),"") -> 
I9: =IFERROR(INDEX(ListOfFiles,ROW()-2),"") -> 
I10: =IFERROR(INDEX(ListOfFiles,ROW()-2),"") -> 
I11: =IFERROR(INDEX(ListOfFiles,ROW()-2),"") -> 
I12: =IFERROR(INDEX(ListOfFiles,ROW()-2),"") -> 
I13: =IFERROR(INDEX(ListOfFiles,ROW()-2),"") -> 
I14: =IFERROR(INDEX(ListOfFiles,ROW()-2),"") -> 
I15: =IFERROR(INDEX(ListOfFiles,ROW()-2),"") -> 
I16: =IFERROR(INDEX(ListOfFiles,ROW()-2),"") -> 
I17: =IFERROR(INDEX(ListOfFiles,ROW()-2),"") -> 
I18: =IFERROR(INDEX(ListOfFiles,ROW()-2),"") -> 
I19: =IFERROR(INDEX(ListOfFiles,ROW()-2),"") -> 
I20: =IFERROR(INDEX(ListOfFiles,ROW()-2),"") -> 
I21: =IFERROR(INDEX(ListOfFiles,ROW()-2),"") -> 
I22: =IFERROR(INDEX(ListOfFiles,ROW()-2),"") -> 
I23: =IFERROR(INDEX(ListOfFiles,ROW()-2),"") -> 
I24: =IFERROR(INDEX(ListOfFiles,ROW()-2),"") -> 
I25: =IFERROR(INDEX(ListOfFiles,ROW()-2),"") -> 
I26: =IFERROR(INDEX(ListOfFiles,ROW()-2),"") -> 
